bitfinex/quotes_BTCUSD_20251202
["timestamp","ask_amount","ask_price","bid_price","bid_amount"]
[1764700230581,0.01087157,91983.0,91980.0,0.0241]
[1764700230782,0.01087192,91980.0,91977.0,0.323]
[1764700230928,0.0108724,91976.0,91973.0,0.0241]
[1764700231132,0.0108724,91976.0,91974.0,0.01732]
[1764700233159,0.01087228,91977.0,91974.0,0.01732]
[1764700234277,0.0108724,91976.0,91973.0,0.0241]
[1764700234434,0.0108724,91976.0,91975.0,0.01728]
[1764700235519,0.0108724,91976.0,91975.0,0.01828]
[1764700235912,0.01133633,91976.0,91975.0,0.01828]
[1764700236187,0.01233633,91976.0,91975.0,0.02628]
[1764700236607,0.00146393,91976.0,91975.0,0.07448]
[1764700237039,0.00146393,91976.0,91975.0,0.44568]
[1764700237456,0.00146393,91976.0,91975.0,0.39748]
[1764700237658,0.00146393,91976.0,91975.0,0.3802]
[1764700237900,0.00146393,91976.0,91975.0,0.39748]
[1764700238807,0.00146393,91976.0,91975.0,0.34928]
[1764700239198,0.00146393,91976.0,91975.0,0.332]
[1764700239403,0.00146393,91976.0,91975.0,0.34928]
[1764700240408,0.00146393,91976.0,91975.0,0.009]
[1764700240409,0.06704393,91976.0,91975.0,0.009]
[1764700240741,0.15738393,91976.0,91975.0,0.009]
[1764700241444,0.06704393,91976.0,91975.0,0.009]
[1764700241873,0.15738393,91976.0,91975.0,0.009]
[1764700242586,0.39211195,91976.0,91975.0,0.009]
[1764700242777,0.01087405,91962.0,91959.0,0.0001153]
[1764700242994,0.1038444,91960.0,91959.0,0.0001153]
[1764700243422,0.1941844,91960.0,91959.0,0.0001153]
[1764700245023,0.1951844,91960.0,91959.0,0.0041153]
[1764700249256,0.05056,91960.0,91959.0,0.0041153]
[1764700250922,0.11614,91960.0,91959.0,0.0041153]
[1764700251352,0.20648,91960.0,91959.0,0.0041153]
[1764700251762,0.001,91960.0,91959.0,0.0613153]
[1764700252911,0.01087405,91962.0,91959.0,0.0573153]
[1764700253099,0.01087405,91962.0,91959.0,0.0583153]
[1764700253362,0.001,91960.0,91959.0,0.0051153]
[1764700253707,0.001,91960.0,91959.0,0.0613153]
[1764700254374,0.01087405,91962.0,91959.0,0.0573153]
[1764700254787,0.01187405,91962.0,91959.0,0.0603153]
[1764700254995,0.01087382,91964.0,91961.0,0.0572]
[1764700255407,0.01087382,91964.0,91959.0,0.01598971]
[1764700255611,0.01087382,91964.0,91963.0,0.0572]
[1764700256026,0.00023199,91968.0,91963.0,0.0572]
[1764700256209,0.00023199,91968.0,91965.0,0.0108737]
[1764700256374,0.00023199,91968.0,91967.0,0.0572]
[1764700256791,0.00023199,91968.0,91967.0,0.1144]
[1764700257593,0.00023199,91968.0,91967.0,0.49992299]
[1764700258143,0.00023199,91968.0,91967.0,0.4384]
[1764700258144,0.00523199,91968.0,91967.0,0.4384]
[1764700258367,0.00123199,91968.0,91967.0,0.45468]
[1764700258793,0.00423199,91968.0,91967.0,0.45568]
[1764700259008,0.00023199,91968.0,91967.0,0.45468]
[1764700259232,0.24668726,92030.0,91967.0,0.45468]
[1764700259233,0.0108698,91998.0,91990.0,0.01087074]
[1764700259433,0.01087003,91996.0,91991.0,0.02815062]
[1764700259590,0.01087003,91996.0,91991.0,0.08535062]
[1764700259932,0.01087003,91996.0,91995.0,0.0858]
[1764700260153,0.01087003,91996.0,91995.0,0.0286]
[1764700260273,0.01168169,91996.0,91995.0,0.0858]
[1764700260479,0.01206711,91996.0,91995.0,0.0858]
[1764700260680,0.01206711,91996.0,91995.0,0.04588]
[1764700261107,0.01206711,91996.0,91995.0,0.0286]
[1764700261309,0.01206711,91996.0,91995.0,0.0316]
[1764700261516,0.01206711,91996.0,91995.0,0.003]
[1764700262247,0.07764711,91996.0,91995.0,0.004]
[1764700262814,0.00119708,91996.0,91995.0,0.0612]
[1764700263089,0.00119708,91996.0,91995.0,0.1184]
[1764700263293,0.00119708,91996.0,91995.0,0.33580311]
[1764700263669,0.00119708,91996.0,91995.0,0.7213261]
[1764700263877,0.00119708,91996.0,91995.0,0.4414]
[1764700264050,0.00119708,91996.0,91995.0,0.39748]
[1764700264397,0.22459783,91996.0,91995.0,0.39848]
[1764700264946,0.22359783,91996.0,91995.0,0.39848]
[1764700265295,0.22059783,91996.0,91995.0,0.39748]
[1764700265500,0.22659783,91996.0,91995.0,0.39848]
[1764700266064,0.22659783,91996.0,91995.0,0.45568]
[1764700266543,0.22659783,91996.0,91995.0,0.39848]
[1764700266745,0.22659783,91996.0,91995.0,0.45568]
[1764700266947,0.22659783,91996.0,91995.0,0.3812]
[1764700267147,0.22659783,91996.0,91995.0,0.39848]
[1764700267566,0.22659783,91996.0,91995.0,0.45568]
[1764700267771,0.22659783,91996.0,91995.0,0.7356061]
[1764700267772,0.00919708,91996.0,91995.0,0.7356061]
[1764700268642,0.32595438,92038.0,91995.0,0.7356061]
[1764700268643,0.0002,92030.0,92004.0,0.21738136]
[1764700268846,0.0002,92030.0,92028.0,0.21732516]
[1764700269045,0.0002,92030.0,92029.0,0.48860299]
[1764700269245,0.22812783,92054.0,92046.0,0.01086413]
[1764700269440,0.22812783,92054.0,92049.0,0.0858]
[1764700269441,0.0108633,92053.0,92049.0,0.0858]
[1764700269717,0.01086236,92061.0,92048.0,0.21727714]
[1764700269906,0.21726606,92054.0,92047.0,0.30262331]
[1764700270059,0.01086307,92055.0,92047.0,0.01728]
[1764700270259,0.01086212,92063.0,92048.0,0.06252299]
[1764700270462,0.01086236,92061.0,92048.0,0.27991479]
[1764700270665,0.0002,92070.0,92049.0,2.06252299]
[1764700271012,0.01106248,92060.0,92049.0,0.07980299]
[1764700271436,0.21726409,92054.0,92049.0,0.06252299]
[1764700271560,0.01106248,92060.0,92049.0,0.07980299]
[1764700271759,0.0072,92050.0,92049.0,0.08080299]
[1764700272382,0.0002,92060.0,92059.0,0.60277496]
[1764700272591,0.01085811,92097.0,92069.0,2.27975137]
[1764700272805,0.01085976,92083.0,92069.0,0.40280299]
[1764700273037,0.0002,92090.0,92069.0,2.40280299]
[1764700273245,0.2171846,92088.0,92069.0,2.40280299]
[1764700273477,0.01085964,92084.0,92069.0,2.40280299]
[1764700273870,0.0042,92070.0,92069.0,2.40280299]
[1764700274119,0.0002,92070.0,92069.0,2.40280299]
[1764700274312,0.0002,92090.0,92078.0,0.21720715]
[1764700274632,0.0002,92090.0,92079.0,0.323]
[1764700274878,0.0002,92090.0,92079.0,2.38552299]
[1764700275198,0.0002,92090.0,92089.0,0.323]
[1764700275605,0.0005859,92090.0,92089.0,0.323]
[1764700275992,0.0484,92131.0,92099.0,0.21715762]
[1764700276194,0.21712542,92113.0,92099.0,0.07991829]
[1764700276433,0.21714296,92106.0,92099.0,0.0173953]
[1764700276752,0.21715355,92101.0,92099.0,0.0173953]
[1764700276968,0.21713095,92111.0,92099.0,0.0173953]
[1764700277241,0.01085752,92102.0,92099.0,0.0001153]
[1764700277446,0.0052,92100.0,92099.0,0.0173953]
[1764700277681,0.0002,92110.0,92108.0,0.27965939]
[1764700277884,0.0002,92110.0,92101.0,0.01085764]
[1764700277885,0.2170627,92140.0,92121.0,0.01085528]
[1764700278015,0.01085293,92141.0,92130.0,0.92291745]
[1764700278216,0.21708168,92132.0,92130.0,0.92291745]
[1764700278417,0.21709542,92126.0,92120.0,0.92291745]
[1764700278625,0.01085281,92142.0,92121.0,0.01728]
[1764700278832,0.21708219,92131.0,92130.0,0.92291745]
[1764700279041,0.21712933,92111.0,92110.0,0.92291745]
[1764700279281,0.0108567,92109.0,92100.0,0.92291745]
[1764700279495,0.21713404,92109.0,92108.0,0.01257]
[1764700279821,0.21713322,92110.0,92108.0,0.01257]
[1764700280328,0.21713322,92110.0,92101.0,0.323]
[1764700280329,0.00327114,92109.0,92100.0,0.92303275]
[1764700280530,0.09538,92126.0,92100.0,0.92303275]
[1764700280531,0.21715246,92102.0,92101.0,0.01728]
[1764700280753,0.21715246,92102.0,92100.0,0.0001153]
[1764700281213,0.16082,92101.0,92100.0,0.0001153]
[1764700283034,0.16082,92101.0,92100.0,0.0051153]
[1764700283168,0.06544,92101.0,92100.0,0.0001153]
[1764700283602,0.21715246,92102.0,92100.0,0.0051153]
[1764700283820,0.01085717,92105.0,92100.0,0.0001153]
[1764700284022,0.21712182,92115.0,92100.0,0.0001153]
[1764700284023,0.01085682,92108.0,92100.0,0.0001153]
[1764700284231,0.01085717,92105.0,92100.0,0.0071153]
[1764700284431,0.2171526,92102.0,92100.0,0.0071153]
[1764700285425,0.2171526,92102.0,92100.0,0.0061153]
[1764700285543,0.2171526,92102.0,92100.0,0.0233953]
[1764700285743,0.2171526,92102.0,92100.0,0.0183953]
[1764700285949,0.00303982,92101.0,92100.0,0.0183953]
[1764700286231,0.00303982,92101.0,92100.0,0.0233953]
[1764700286438,0.00303982,92101.0,92100.0,0.0001153]
[1764700286607,0.00303982,92101.0,92100.0,0.0081153]
[1764700287039,0.00303982,92101.0,92100.0,0.0001153]
[1764700287195,0.00303982,92101.0,92100.0,0.0081153]
[1764700287355,0.00303982,92101.0,92100.0,0.0091153]
[1764700287972,0.18018422,92101.0,92100.0,0.0091153]
[1764700288698,0.50657889,92101.0,92100.0,0.0091153]
[1764700288906,0.50657889,92101.0,92100.0,0.0081153]
[1764700289151,0.50318422,92101.0,92100.0,0.0001153]
[1764700289431,0.50657885,92101.0,92100.0,0.0071153]
[1764700290457,0.0108633,92053.0,92050.0,0.92291745]
[1764700290604,0.01086283,92057.0,92050.0,0.0003859]
[1764700290793,0.01086224,92062.0,92054.0,0.01086318]
[1764700290992,0.01086236,92061.0,92055.0,0.01086307]
[1764700291204,0.0108613,92070.0,92060.0,0.01086248]
[1764700291398,0.01086153,92068.0,92063.0,0.22810344]
[1764700291606,0.0484,92088.0,92077.0,0.01086047]
[1764700291801,0.0484,92088.0,92083.0,0.01085976]
[1764700292046,0.01728,92099.0,92078.0,1.14012361]
[1764700292047,0.01085693,92107.0,92096.0,0.01085823]
[1764700292248,0.22800685,92103.0,92100.0,0.002]
[1764700292447,0.22801947,92098.0,92095.0,0.92291745]
[1764700292642,0.21716361,92097.0,92095.0,0.92291745]
[1764700292972,0.22802172,92097.0,92095.0,0.00011532]
[1764700293120,0.01085705,92106.0,92099.0,0.01085788]
[1764700293457,0.0108567,92109.0,92100.0,0.23401288]
[1764700293637,0.21714416,92105.0,92098.0,0.01728]
[1764700293961,0.0108574,92103.0,92098.0,0.02813799]
[1764700294166,0.0108574,92103.0,92098.0,0.01728]
[1764700294395,0.22801054,92101.0,92098.0,0.01728]
[1764700294546,0.21715526,92100.0,92098.0,0.01728]
[1764700294748,0.21715604,92100.0,92098.0,0.01728]
[1764700295769,0.21716233,92097.0,92096.0,0.92291745]
[1764700295969,0.01085705,92106.0,92097.0,0.01085811]
[1764700296184,0.22799445,92108.0,92102.0,0.01085752]
[1764700296316,0.01085705,92106.0,92102.0,0.22800671]
[1764700296520,0.01085705,92106.0,92097.0,0.01085811]
[1764700296521,0.01085717,92105.0,92097.0,0.22801981]
[1764700296722,0.01085729,92104.0,92098.0,0.01085799]
[1764700296969,0.2171615,92098.0,92096.0,0.94019745]
[1764700297271,0.01085682,92108.0,92100.0,0.01085776]
[1764700297421,0.01085682,92108.0,92099.0,0.01085788]
[1764700297422,0.0108574,92103.0,92099.0,0.01085788]
[1764700297620,0.01085682,92108.0,92101.0,0.01085764]
[1764700297834,0.2171539,92101.0,92098.0,0.92491745]
[1764700298025,0.22801096,92101.0,92098.0,0.002]
[1764700298281,0.00339381,92100.0,92098.0,0.002]
[1764700298440,0.00339381,92099.0,92097.0,0.23444012]
[1764700298664,0.00339381,92098.0,92097.0,0.23444012]
[1764700299209,0.01085623,92113.0,92107.0,0.01085693]
[1764700299511,0.2171392,92107.0,92104.0,0.21714373]
[1764700299655,0.0033937,92106.0,92103.0,0.92291745]
[1764700299859,0.0033937,92105.0,92103.0,1.14006528]
[1764700300068,0.0033937,92104.0,92103.0,1.1400654]
[1764700300263,0.0033937,92104.0,92102.0,0.21714961]
[1764700300516,0.0033937,92103.0,92102.0,0.21714961]
[1764700301111,0.0033937,92103.0,92102.0,0.6026726]
[1764700301313,0.01085505,92123.0,92112.0,0.01085634]
[1764700301651,0.21712126,92115.0,92113.0,0.92291745]
[1764700301846,0.21712177,92115.0,92113.0,0.94019745]
[1764700302053,0.01085587,92116.0,92113.0,0.01728]
[1764700302209,0.21710805,92121.0,92113.0,0.01728]
[1764700302210,0.22795978,92122.0,92116.0,0.22797188]
[1764700302434,0.01085481,92125.0,92118.0,0.22796847]
[1764700302617,0.002,92123.0,92119.0,0.01085552]
[1764700302826,0.1145144,92140.0,92113.0,0.01728]
[1764700302827,0.01085281,92142.0,92131.0,0.0108541]
[1764700303021,0.00339271,92141.0,92138.0,0.01085328]
[1764700303336,0.00339271,92141.0,92134.0,0.01085375]
[1764700303337,0.00339271,92140.0,92134.0,0.01085375]
[1764700303515,0.22791161,92141.0,92134.0,0.01085375]
[1764700303882,0.22791711,92139.0,92134.0,0.21707434]
[1764700304004,0.22791479,92140.0,92136.0,0.01085352]
[1764700304205,0.01085304,92140.0,92135.0,0.22792441]
[1764700304427,0.01085293,92141.0,92137.0,0.0108534]
[1764700304625,0.22791709,92139.0,92134.0,0.01096907]
[1764700304822,0.01085316,92139.0,92134.0,0.00011532]
[1764700305065,0.22791359,92141.0,92134.0,0.00011532]
[1764700305066,0.01085293,92141.0,92136.0,0.01085352]
[1764700305236,0.01085304,92140.0,92134.0,0.01096907]
[1764700305435,0.003,92141.0,92135.0,0.01085363]
[1764700305605,0.003,92141.0,92137.0,0.21706758]
[1764700305802,0.01085257,92144.0,92139.0,0.21706286]
[1764700306008,0.04697,92149.0,92143.0,0.01085269]
[1764700306248,0.21704996,92145.0,92140.0,0.01085304]
[1764700306452,0.01085222,92147.0,92138.0,0.22791845]
[1764700306658,0.0163244,92156.0,92135.0,0.63721603]
[1764700306659,0.01085269,92143.0,92135.0,0.63721603]
[1764700306853,0.00413824,92139.0,92138.0,0.01085328]
[1764700307031,0.00413824,92139.0,92137.0,0.21706774]
[1764700307249,0.003,92141.0,92138.0,0.01085328]
[1764700307450,0.01085316,92139.0,92135.0,0.6263624]
[1764700307674,0.01385293,92141.0,92137.0,0.2279207]
[1764700307881,0.003,92141.0,92138.0,0.01085328]
[1764700308079,0.227907,92143.0,92139.0,0.22791443]
[1764700308281,0.01085269,92143.0,92140.0,0.21806075]
[1764700308484,0.22790757,92143.0,92140.0,0.001]
[1764700308718,0.01085281,92142.0,92135.0,0.6263624]
[1764700309023,0.2170415,92149.0,92135.0,0.6263624]
[1764700309024,0.003,92141.0,92140.0,0.21706099]
[1764700309177,0.0108521,92148.0,92140.0,0.21706099]
[1764700309178,0.21704693,92146.0,92143.0,0.21705369]
[1764700309359,0.01085222,92147.0,92144.0,0.21705149]
[1764700309555,0.01085222,92147.0,92143.0,0.01085269]
[1764700309556,0.04697,92155.0,92146.0,0.01085234]
[1764700309758,0.01085057,92161.0,92153.0,0.01085151]
[1764700310018,0.01085092,92158.0,92154.0,0.01724]
[1764700310220,0.01085045,92162.0,92154.0,0.01724]
[1764700310554,0.01085104,92157.0,92154.0,0.01724]
[1764700310877,0.21702566,92155.0,92154.0,0.01724]
[1764700311117,0.21702365,92156.0,92154.0,0.01724]
[1764700311323,0.01085069,92160.0,92154.0,0.01724]
[1764700311685,0.22786726,92159.0,92155.0,0.217025]
[1764700311891,0.21700741,92163.0,92157.0,0.22787166]
[1764700312086,0.01085034,92163.0,92159.0,0.01085081]
[1764700312241,0.22785246,92165.0,92157.0,0.01085104]
[1764700312242,0.01084951,92170.0,92158.0,0.01085092]
[1764700312461,0.01084963,92169.0,92161.0,0.01085057]
[1764700312665,0.01084951,92170.0,92165.0,0.0108501]
[1764700312860,0.01084951,92170.0,92161.0,0.01085057]
[1764700312861,0.21699666,92168.0,92166.0,0.01724]
[1764700313962,0.21699549,92168.0,92166.0,0.01735532]
[1764700314358,0.00494702,92167.0,92166.0,0.01735532]
[1764700315490,0.00494702,92167.0,92166.0,0.00611532]
[1764700315703,0.00494702,92167.0,92166.0,0.00711532]
[1764700315876,0.06987702,92167.0,92166.0,0.00711532]
[1764700316081,0.00494702,92167.0,92166.0,0.00711532]
[1764700316239,0.22194442,92167.0,92166.0,0.00011532]
[1764700316440,0.22194442,92167.0,92166.0,0.00811532]
[1764700316643,0.38506442,92167.0,92166.0,0.00811532]
[1764700316847,0.40138882,92167.0,92166.0,0.00811532]
[1764700317462,0.28687442,92167.0,92166.0,0.00811532]
[1764700317821,0.28687442,92167.0,92166.0,0.00011532]
[1764700317958,0.22194442,92167.0,92166.0,0.00611532]
[1764700318362,0.22194442,92167.0,92166.0,0.00111532]
[1764700318710,0.22194442,92167.0,92166.0,0.00511532]
[1764700319289,0.38506442,92167.0,92166.0,0.00511532]
[1764700320333,0.40138882,92167.0,92166.0,0.00511532]
[1764700320469,0.01085363,92135.0,92128.0,0.22794235]
[1764700320684,0.21708219,92131.0,92129.0,0.01724]
[1764700320929,0.01085399,92132.0,92128.0,0.0001154]
[1764700321130,0.21708691,92129.0,92128.0,0.0001154]
[1764700321802,0.28201691,92129.0,92128.0,0.0001154]
[1764700322183,0.22108691,92129.0,92128.0,0.0001154]
[1764700322482,0.21708691,92129.0,92128.0,0.0001154]
[1764700322685,0.39653131,92129.0,92128.0,0.0001154]
[1764700322887,0.39653131,92129.0,92128.0,0.0058754]
[1764700322888,0.72292465,92129.0,92128.0,0.0058754]
[1764700324022,0.72292465,92129.0,92128.0,0.001]
[1764700324235,0.72292465,92129.0,92128.0,0.002]
[1764700324447,0.72292465,92129.0,92128.0,0.001]
[1764700324649,0.01085634,92112.0,92110.0,0.6263624]
[1764700324850,0.01085705,92106.0,92101.0,0.01724]
[1764700325085,0.01085634,92112.0,92106.0,0.01085705]
[1764700325260,0.1145144,92129.0,92114.0,0.2171214]
[1764700325261,0.01085517,92122.0,92114.0,0.2171214]
[1764700325612,0.01085528,92121.0,92115.0,0.02171199]
[1764700325783,0.21711342,92118.0,92114.0,0.01724]
[1764700325990,0.01085575,92117.0,92114.0,0.01724]
[1764700326142,0.01085528,92121.0,92118.0,0.01085564]
[1764700326484,0.0108554,92120.0,92117.0,0.22796943]
[1764700326685,0.01085528,92121.0,92118.0,0.21711215]
[1764700326987,0.01085375,92134.0,92125.0,0.01085481]
[1764700327127,0.01085375,92134.0,92126.0,0.22794866]
[1764700327128,0.21707877,92133.0,92126.0,0.22794866]
[1764700327333,0.01085375,92134.0,92129.0,0.21708619]
[1764700327532,0.01085293,92141.0,92134.0,0.01085375]
[1764700327782,0.01085257,92144.0,92138.0,0.01085328]
[1764700327982,0.22791442,92140.0,92136.0,0.22792345]
[1764700328188,0.01085316,92139.0,92136.0,0.22792345]
[1764700328388,0.01085316,92139.0,92135.0,0.01085363]
[1764700328600,0.01085269,92143.0,92137.0,0.0108534]
[1764700328752,0.01085187,92150.0,92145.0,0.01085246]
[1764700328969,0.21704252,92148.0,92146.0,0.01724]
[1764700329171,0.21705863,92141.0,92140.0,0.6263624]
[1764700329375,0.21705863,92141.0,92131.0,0.323]
[1764700329376,0.01085316,92139.0,92131.0,0.6263624]
[1764700329577,0.01085151,92153.0,92137.0,0.0280934]
[1764700329816,0.22790779,92143.0,92139.0,0.323]
[1764700330198,0.2279104,92142.0,92139.0,0.323]
[1764700330396,0.21705894,92141.0,92140.0,0.01724]
[1764700330605,0.21706734,92138.0,92136.0,0.00011541]
[1764700330770,0.21706734,92138.0,92137.0,0.01724]
[1764700331319,0.21706618,92138.0,92137.0,0.01724]
[1764700331499,0.21706618,92138.0,92136.0,0.00011541]
[1764700331701,0.21706618,92138.0,92137.0,0.01724]
[1764700331922,0.22106618,92138.0,92137.0,0.01724]
[1764700332225,0.00810935,92138.0,92137.0,0.01724]
[1764700332376,0.00810935,92138.0,92137.0,0.23430806]
[1764700333275,0.21706806,92137.0,92136.0,0.00011541]
[1764700333401,0.27795806,92137.0,92136.0,0.00011541]
[1764700333603,0.38996246,92137.0,92136.0,0.00011541]
[1764700334232,0.71635598,92137.0,92136.0,0.00011541]
[1764700334814,0.71296246,92137.0,92136.0,0.00211541]
[1764700335038,0.73020246,92137.0,92136.0,0.00011541]
[1764700335854,0.73359598,92137.0,92136.0,0.00011541]
[1764700336289,0.73020246,92137.0,92136.0,0.00011541]
[1764700336439,0.73359599,92137.0,92136.0,0.00011541]
[1764700336828,0.38996246,92137.0,92136.0,0.00111541]
[1764700337033,0.38996246,92137.0,92136.0,0.00011541]
[1764700337245,0.15657,92137.0,92136.0,0.00111541]
[1764700337445,0.01085163,92152.0,92139.0,0.01085316]
[1764700337670,0.21706806,92137.0,92136.0,0.00011541]
[1764700338019,0.21706633,92138.0,92136.0,0.00111541]
[1764700338234,0.21706633,92138.0,92136.0,0.00011541]
[1764700338439,0.22791886,92139.0,92136.0,0.00011541]
[1764700338647,0.22790257,92145.0,92140.0,0.21706087]
[1764700338853,0.21705874,92141.0,92140.0,0.01724]
[1764700339362,0.22125477,92141.0,92140.0,0.01724]
[1764700340678,0.22125477,92141.0,92140.0,0.02224]
[1764700340852,0.37782477,92141.0,92140.0,0.006]
[1764700341550,0.37782477,92141.0,92140.0,0.005]
[1764700341877,0.22125477,92141.0,92140.0,0.005]
[1764700342790,0.21706806,92137.0,92136.0,0.00011541]
[1764700343994,0.21706613,92138.0,92136.0,0.00511541]
[1764700344201,0.01085316,92139.0,92136.0,0.00511541]
[1764700344415,0.21706806,92137.0,92136.0,0.00511541]
[1764700344789,0.21706572,92138.0,92136.0,0.00511541]
[1764700344964,0.09568,92157.0,92141.0,0.22790921]
[1764700345175,0.21703792,92150.0,92141.0,0.01085293]
[1764700345375,0.21705863,92141.0,92140.0,0.6263624]
[1764700345605,0.01085281,92142.0,92138.0,0.01085328]
[1764700346021,0.21706146,92140.0,92137.0,0.0108534]
[1764700346218,0.01085175,92151.0,92144.0,0.01085257]
[1764700346437,0.01085257,92144.0,92140.0,0.01085304]
[1764700346974,0.01085257,92144.0,92138.0,0.005]
[1764700346975,0.21706334,92139.0,92138.0,0.005]
[1764700347191,0.21705717,92142.0,92138.0,0.21806428]
[1764700347403,0.01085128,92155.0,92141.0,0.01085293]
[1764700347550,0.01085198,92149.0,92145.0,0.22789949]
[1764700348048,0.01085222,92147.0,92144.0,0.01085257]
[1764700348254,0.01085257,92144.0,92140.0,0.6263624]
[1764700348389,0.01085269,92143.0,92140.0,0.84342226]
[1764700348581,0.00419603,92141.0,92140.0,0.84342226]
[1764700348822,0.00419603,92141.0,92140.0,0.84442226]
[1764700349269,0.00419603,92141.0,92140.0,0.84342226]
[1764700349503,0.00419603,92141.0,92140.0,0.21705986]
[1764700349730,0.02916627,92197.0,92175.0,0.01084892]
[1764700349936,0.00038271,92187.0,92178.0,0.21697151]
[1764700350148,0.00038271,92187.0,92180.0,0.01084834]
[1764700350356,0.00038271,92187.0,92183.0,0.22780719]
[1764700350588,0.00038271,92187.0,92185.0,0.21695503]
[1764700350804,0.01084786,92184.0,92165.0,0.0108501]
[1764700351008,0.01084845,92179.0,92177.0,0.01724]
[1764700351211,0.21699632,92168.0,92161.0,0.06252299]
[1764700351417,0.01084998,92166.0,92162.0,0.01724]
[1764700351671,0.01084939,92171.0,92162.0,0.01724]
[1764700351877,0.01084939,92171.0,92163.0,0.01724]
[1764700352085,0.01084904,92174.0,92165.0,0.0108501]
[1764700352290,0.01084928,92172.0,92165.0,0.0108501]
[1764700352463,0.01084939,92171.0,92165.0,0.0108501]
[1764700352780,0.01084963,92169.0,92164.0,0.6263624]
[1764700352925,0.01085163,92152.0,92117.0,0.13410457]
[1764700353121,0.06249,92188.0,92117.0,0.13410457]
[1764700353122,0.01085128,92155.0,92146.0,0.01085234]
[1764700353331,0.01085081,92159.0,92151.0,0.01085175]
[1764700353543,0.21699741,92167.0,92149.0,0.01085198]
[1764700353544,0.01484928,92172.0,92162.0,0.227858]
[1764700353740,0.01484928,92172.0,92158.0,0.01085092]
[1764700353741,0.22784509,92168.0,92161.0,0.01724]
[1764700353956,0.21699039,92170.0,92162.0,0.01085045]
[1764700354213,0.01084975,92168.0,92163.0,0.01085034]
[1764700354404,0.01084951,92170.0,92165.0,0.0108501]
[1764700354865,0.001,92172.0,92170.0,0.21699034]
[1764700355286,0.001,92172.0,92169.0,0.01084963]
[1764700355436,0.001,92172.0,92171.0,0.21698798]
[1764700355639,0.01084869,92177.0,92169.0,0.22784114]
[1764700355894,0.22782259,92177.0,92172.0,0.01084928]
[1764700356048,0.01084881,92176.0,92172.0,0.01084928]
[1764700356249,0.01084869,92177.0,92173.0,0.22783244]
[1764700356469,0.01084881,92176.0,92172.0,0.01084928]
[1764700356849,0.11271,92173.0,92171.0,0.001]
[1764700357131,0.06319,92172.0,92171.0,0.001]
[1764700357309,0.15558,92172.0,92171.0,0.001]
[1764700357508,0.06319,92172.0,92171.0,0.001]
[1764700357704,0.26650395,92173.0,92171.0,0.001]
[1764700358113,0.216995,92169.0,92164.0,0.01085022]
[1764700358311,0.22783491,92172.0,92167.0,0.01084987]
[1764700358527,0.01084892,92175.0,92168.0,0.01084975]
[1764700358730,0.01084904,92174.0,92169.0,0.01084963]
[1764700358928,0.22783653,92172.0,92167.0,0.01084987]
[1764700359174,0.01084939,92171.0,92166.0,0.01084998]
[1764700359339,0.01084939,92171.0,92164.0,0.01085022]
[1764700359536,0.01084939,92171.0,92167.0,0.01084987]
[1764700359908,0.01084951,92170.0,92165.0,0.0108501]
[1764700360113,0.01084892,92175.0,92166.0,0.22784838]
[1764700360319,0.22781867,92179.0,92171.0,0.003]
[1764700360543,0.22781879,92179.0,92174.0,0.21697896]
[1764700360746,0.01084904,92174.0,92169.0,0.6263624]
[1764700360948,0.01084916,92173.0,92169.0,0.6263624]
[1764700361153,0.01084892,92175.0,92171.0,0.22783598]
[1764700361272,0.01084892,92175.0,92171.0,0.01084939]
[1764700361468,0.01084904,92174.0,92170.0,0.22783816]
[1764700361672,0.00089607,92172.0,92171.0,0.22783626]
[1764700361912,0.00089607,92172.0,92168.0,0.01084975]
[1764700362117,0.28018412,92169.0,92167.0,0.004]
[1764700362322,0.21700917,92162.0,92154.0,0.1464]
[1764700362662,0.28019917,92162.0,92154.0,0.1464]
[1764700362771,0.37258917,92162.0,92154.0,0.1464]
[1764700363430,0.21700917,92162.0,92155.0,0.21702397]
[1764700363630,0.21700682,92163.0,92154.0,0.1572514]
[1764700363631,0.21700794,92163.0,92154.0,0.1572514]
[1764700363834,0.21700794,92163.0,92161.0,0.00411541]
[1764700364450,0.06319,92162.0,92161.0,0.00411541]
[1764700364678,0.06319,92162.0,92161.0,0.00511541]
[1764700364679,0.1719044,92162.0,92161.0,0.00511541]
[1764700365183,0.1719044,92162.0,92161.0,0.00411541]
[1764700365305,0.1719044,92162.0,92161.0,0.00011541]
[1764700365510,0.1719044,92162.0,92161.0,0.00511541]
[1764700365960,0.06319,92162.0,92161.0,0.00011541]
[1764700366150,0.01084928,92172.0,92161.0,0.03220598]
[1764700366464,0.01084928,92172.0,92165.0,0.0108501]
[1764700366701,0.01084975,92168.0,92164.0,0.01085022]
[1764700366906,0.21698273,92174.0,92168.0,0.01084975]
[1764700367045,0.01084822,92181.0,92173.0,0.01084916]
[1764700367246,0.01084857,92178.0,92172.0,0.22783241]
[1764700367586,0.22782309,92177.0,92172.0,0.22783241]
[1764700367888,0.21698637,92172.0,92170.0,0.6263624]
[1764700368066,0.01084963,92169.0,92164.0,0.01085022]
[1764700368437,0.22784054,92170.0,92165.0,0.0108501]
[1764700368637,0.01084951,92170.0,92165.0,0.0108501]
[1764700368854,0.22784027,92170.0,92166.0,0.21699959]
[1764700369052,0.21699517,92168.0,92166.0,0.22784957]
[1764700369271,0.01084963,92169.0,92164.0,0.004]
[1764700369473,0.01084975,92168.0,92164.0,0.005]
[1764700369682,0.21700211,92165.0,92164.0,0.001]
[1764700370116,0.37258211,92165.0,92164.0,0.001]
[1764700371060,0.21700917,92162.0,92161.0,0.00011541]
[1764700371390,0.37258917,92162.0,92161.0,0.00011541]
[1764700372146,0.28019917,92162.0,92161.0,0.00011541]
[1764700372642,0.38891357,92162.0,92161.0,0.00411541]
[1764700373935,0.38891357,92162.0,92161.0,0.00511541]
[1764700374471,0.38952065,92162.0,92161.0,0.00511541]
[1764700375029,0.39291331,92162.0,92161.0,0.00511541]
[1764700375230,0.38952065,92162.0,92161.0,0.00511541]
[1764700375663,0.38952065,92162.0,92161.0,0.00411541]
[1764700375865,0.38952065,92162.0,92161.0,0.00011541]
[1764700376265,0.38952065,92162.0,92161.0,0.00211541]
[1764700378046,0.38952065,92162.0,92161.0,0.00161541]
[1764700380723,0.71252065,92162.0,92161.0,0.00161541]
[1764700380878,0.71591317,92162.0,92161.0,0.00161541]
[1764700381783,0.21707984,92132.0,92129.0,0.0577128]
[1764700381995,0.21711047,92119.0,92118.0,0.0577128]
[1764700382201,0.21712933,92111.0,92110.0,0.97597286]
[1764700382409,0.2171364,92108.0,92106.0,0.0577128]
[1764700382612,0.01085729,92104.0,92099.0,0.0577128]
[1764700382827,0.01085752,92102.0,92099.0,0.00011546]
[1764700383203,0.21715406,92101.0,92099.0,0.00011546]
[1764700383608,0.0108567,92109.0,92100.0,0.21715526]
[1764700383819,0.01085682,92108.0,92103.0,0.0108574]